[Event "Rapid Tournament (RAP)"]
[Site "Biel, Switzerland"]
[Date "2026.07.12"]
[Round "6.50"]
[White "Chu, Wa Ching David"]
[Black "Tcheau, Alain"]
[Result "1-0"]
[TimeControl "15 + 5"]
[WhiteTitle "-"]
[BlackTitle "-"]
[WhiteFideId "6013180"]
[BlackFideId "1306014"]
[WhiteElo "1723"]
[BlackElo "1932"]

1. d4 {[%clk 00:15:07]} {[%emt 00:00:03]} c6 {[%clk 00:15:10]} {[%emt
00:00:01]} 2. c4 {[%clk 00:15:07]} {[%emt 00:00:04]} e6 {[%clk 00:15:14]}
{[%emt 00:00:01]} 3. Nc3 {[%clk 00:15:09]} {[%emt 00:00:03]} d5 {[%clk
00:15:18]} {[%emt 00:00:01]} 4. e4 {[%clk 00:15:12]} {[%emt 00:00:02]} dxe4 5.
Nxe4 {[%clk 00:15:15]} Nf6 {[%clk 00:15:24]} {[%emt 00:00:02]} 6. Nxf6+ {[%clk
00:15:18]} {[%emt 00:00:02]} Qxf6 {[%clk 00:15:23]} {[%emt 00:00:06]} 7. Nf3
{[%clk 00:15:21]} {[%emt 00:00:01]} Qd8 {[%clk 00:15:22]} {[%emt 00:00:07]} 8.
Bd3 {[%clk 00:15:02]} {[%emt 00:00:23]} Nd7 {[%clk 00:15:24]} {[%emt 00:00:05]}
9. O-O {[%clk 00:15:04]} {[%emt 00:00:02]} Nf6 {[%clk 00:15:27]} {[%emt
00:00:02]} 10. Bg5 {[%clk 00:15:05]} {[%emt 00:00:04]} Be7 {[%clk 00:15:31]} 11.
Bc2 {[%clk 00:15:03]} {[%emt 00:00:07]} O-O {[%clk 00:15:27]} {[%emt 00:00:09]}
12. Qd3 {[%clk 00:14:54]} {[%emt 00:00:13]} g6 {[%clk 00:15:27]} {[%emt
00:00:06]} 13. Rfe1 {[%clk 00:14:44]} {[%emt 00:00:14]} Re8 {[%clk 00:15:30]}
{[%emt 00:00:02]} 14. Rad1 {[%clk 00:14:41]} {[%emt 00:00:08]} Kg7 {[%clk
00:15:27]} {[%emt 00:00:08]} 15. Ne5 {[%clk 00:14:33]} {[%emt 00:00:13]} Ng8
{[%clk 00:15:09]} {[%emt 00:00:23]} 16. Bf4 {[%clk 00:14:12]} {[%emt 00:00:25]}
Bf6 {[%clk 00:14:40]} {[%emt 00:00:35]} 17. Qh3 {[%clk 00:13:42]} {[%emt
00:00:35]} Bxe5 {[%clk 00:14:12]} {[%emt 00:00:34]} 18. dxe5 {[%clk 00:13:28]}
{[%emt 00:00:19]} Qe7 {[%clk 00:13:49]} {[%emt 00:00:28]} 19. Qe3 {[%clk
00:13:04]} {[%emt 00:00:28]} h6 {[%clk 00:12:59]} {[%emt 00:00:55]} 20. Bg3
{[%clk 00:11:37]} {[%emt 00:01:33]} b6 {[%clk 00:13:01]} {[%emt 00:00:04]} 21.
Rd6 {[%clk 00:11:10]} {[%emt 00:00:31]} Bb7 {[%clk 00:12:59]} {[%emt 00:00:07]}
22. Red1 {[%clk 00:11:01]} {[%emt 00:00:14]} Red8 {[%clk 00:12:36]} {[%emt
00:00:28]} 23. Qd4 {[%clk 00:10:12]} {[%emt 00:00:54]} c5 {[%clk 00:12:19]}
{[%emt 00:00:22]} 24. Qd3 {[%clk 00:10:06]} {[%emt 00:00:11]} Rxd6 {[%clk
00:11:39]} {[%emt 00:00:46]} 25. exd6 {[%clk 00:10:06]} {[%emt 00:00:03]} Qd7
{[%clk 00:11:06]} {[%emt 00:00:39]} 26. h4 {[%clk 00:09:41]} {[%emt 00:00:30]}
h5 {[%clk 00:10:34]} {[%emt 00:00:36]} 27. Be5+ {[%clk 00:06:20]} {[%emt
00:03:26]} Kf8 {[%clk 00:10:01]} {[%emt 00:00:39]} 28. Ba4 {[%clk 00:05:41]}
{[%emt 00:00:44]} Qxa4 {[%clk 00:08:55]} {[%emt 00:01:11]} 29. d7 {[%clk
00:05:43]} {[%emt 00:00:03]} Rd8 {[%clk 00:08:51]} {[%emt 00:00:09]} 30. Qd6+
{[%clk 00:05:08]} {[%emt 00:00:40]} Ne7 {[%clk 00:08:40]} {[%emt 00:00:16]} 31.
Bf6 {[%clk 00:05:07]} {[%emt 00:00:06]} Rxd7 {[%clk 00:05:57]} {[%emt
00:02:48]} 32. Qxd7 {[%clk 00:05:06]} {[%emt 00:00:06]} Nc6 {[%clk 00:04:53]}
{[%emt 00:01:09]} 33. b3 {[%clk 00:04:32]} {[%emt 00:00:38]} Ke8 {[%emt
00:00:06]} 34. Qd6 {[%emt 00:00:02]} 1-0

[Event "Rapid Tournament (RAP)"]
[Site "Biel, Switzerland"]
[Date "2026.07.12"]
[Round "6.51"]
[White "Huettinger, Jonathan"]
[Black "Lopez, Manuel"]
[Result "0-1"]
[TimeControl "15 + 5"]
[WhiteTitle "-"]
[BlackTitle "-"]
[WhiteFideId "1366750"]
[BlackFideId "1306324"]
[WhiteElo "1704"]
[BlackElo "1916"]

1. e4 {[%clk 00:15:06]} e6 {[%clk 00:15:09]} {[%emt 00:00:02]} 2. d4 {[%clk
00:15:02]} {[%emt 00:00:09]} d5 {[%clk 00:15:12]} {[%emt 00:00:02]} 3. exd5
{[%clk 00:15:00]} {[%emt 00:00:07]} exd5 {[%clk 00:15:14]} {[%emt 00:00:03]} 4.
Nf3 {[%clk 00:14:58]} {[%emt 00:00:06]} Nf6 {[%clk 00:15:16]} {[%emt 00:00:04]}
5. Bd3 {[%clk 00:14:54]} {[%emt 00:00:09]} Bd6 {[%clk 00:15:19]} {[%emt
00:00:03]} 6. O-O {[%clk 00:14:55]} {[%emt 00:00:03]} O-O {[%clk 00:15:22]}
{[%emt 00:00:02]} 7. h3 {[%clk 00:14:47]} {[%emt 00:00:13]} h6 {[%clk
00:15:19]} {[%emt 00:00:08]} 8. Re1 {[%clk 00:14:42]} {[%emt 00:00:10]} Re8
{[%clk 00:15:06]} {[%emt 00:00:19]} 9. c3 {[%clk 00:13:41]} {[%emt 00:01:06]}
Rxe1+ {[%clk 00:15:04]} {[%emt 00:00:07]} 10. Qxe1 {[%clk 00:13:42]} {[%emt
00:00:03]} c6 {[%clk 00:15:06]} {[%emt 00:00:03]} 11. Nbd2 {[%clk 00:13:32]}
{[%emt 00:00:15]} Nbd7 {[%clk 00:15:09]} {[%emt 00:00:03]} 12. Nf1 {[%clk
00:13:32]} {[%emt 00:00:05]} Nf8 {[%clk 00:15:12]} {[%emt 00:00:02]} 13. Be3
{[%clk 00:13:04]} {[%emt 00:00:32]} a5 {[%clk 00:15:14]} {[%emt 00:00:04]} 14.
Qd2 {[%clk 00:12:44]} {[%emt 00:00:24]} Ne4 {[%clk 00:14:15]} {[%emt 00:01:05]}
15. Qc1 {[%clk 00:11:42]} {[%emt 00:01:06]} Bf5 {[%clk 00:12:37]} {[%emt
00:01:44]} 16. N3d2 {[%clk 00:09:33]} {[%emt 00:02:13]} Bh7 {[%clk 00:12:02]}
{[%emt 00:00:40]} 17. Nxe4 {[%clk 00:08:48]} {[%emt 00:00:50]} dxe4 {[%clk
00:12:03]} {[%emt 00:00:04]} 18. Bc2 {[%clk 00:08:23]} {[%emt 00:00:30]} Qh4
{[%clk 00:11:55]} {[%emt 00:00:12]} 19. Qe1 {[%clk 00:07:26]} {[%emt 00:01:03]}
Re8 {[%clk 00:11:28]} {[%emt 00:00:32]} 20. Ng3 {[%clk 00:07:17]} {[%emt
00:00:14]} f5 {[%clk 00:11:19]} {[%emt 00:00:15]} 21. Bd2 {[%clk 00:06:15]}
{[%emt 00:01:07]} Nd7 {[%clk 00:10:50]} {[%emt 00:00:33]} 22. c4 {[%clk
00:04:15]} {[%emt 00:02:05]} Nf6 {[%clk 00:09:58]} {[%emt 00:00:57]} 23. Nf1
{[%clk 00:03:31]} {[%emt 00:00:50]} f4 {[%clk 00:09:49]} {[%emt 00:00:14]} 24.
Bc3 {[%clk 00:02:46]} {[%emt 00:00:49]} f3 {[%clk 00:09:31]} {[%emt 00:00:22]}
25. d5 {[%clk 00:02:06]} {[%emt 00:00:46]} fxg2 {[%clk 00:09:29]} {[%emt
00:00:08]} 26. Ng3 {[%clk 00:01:59]} {[%emt 00:00:12]} Qxh3 {[%clk 00:09:23]}
{[%emt 00:00:11]} 27. Bxf6 {[%clk 00:01:49]} {[%emt 00:00:14]} gxf6 {[%clk
00:08:44]} {[%emt 00:00:45]} 28. dxc6 {[%clk 00:01:11]} {[%emt 00:00:42]} bxc6
{[%clk 00:07:57]} {[%emt 00:00:53]} 29. c5 {[%clk 00:00:56]} {[%emt 00:00:20]}
Bxg3 {[%clk 00:07:44]} {[%emt 00:00:17]} 30. fxg3 {[%clk 00:00:56]} {[%emt
00:00:05]} Qh1+ {[%clk 00:07:22]} {[%emt 00:00:27]} 31. Kf2 {[%clk 00:00:59]}
{[%emt 00:00:02]} e3+ {[%clk 00:06:49]} {[%emt 00:00:39]} 32. Kf3 {[%clk
00:00:11]} {[%emt 00:00:52]} g1=Q+ {[%clk 00:06:03]} {[%emt 00:00:51]} 33. Kg4
{[%emt 00:00:35]} h5+ 34. Kf4 {[%emt 00:00:06]} Qe4+ {[%emt 00:00:04]} 35. Kg5
{[%emt 00:00:16]} Qeh1+ 36. Kf4 {[%emt 00:00:01]} Re4+ {[%emt 00:00:01]} 0-1

[Event "Rapid Tournament (RAP)"]
[Site "Biel, Switzerland"]
[Date "2026.07.12"]
[Round "6.52"]
[White "Ghosh, David"]
[Black "Alsaqer, Meshal"]
[Result "0-1"]
[TimeControl "15 + 5"]
[WhiteTitle "-"]
[BlackTitle "-"]
[WhiteFideId "1366718"]
[BlackFideId "10301771"]
[WhiteElo "1685"]
[BlackElo "1903"]

1. e4 {[%clk 00:14:24]} {[%emt 00:00:45]} e6 {[%clk 00:14:54]} {[%emt
00:00:15]} 2. d4 {[%clk 00:14:26]} {[%emt 00:00:04]} d5 {[%clk 00:14:55]}
{[%emt 00:00:04]} 3. e5 {[%clk 00:14:22]} {[%emt 00:00:10]} c5 {[%clk
00:14:54]} {[%emt 00:00:06]} 4. c3 {[%clk 00:14:25]} {[%emt 00:00:02]} Qb6
{[%clk 00:14:52]} {[%emt 00:00:08]} 5. Nf3 {[%clk 00:14:27]} {[%emt 00:00:02]}
Bd7 {[%clk 00:14:49]} {[%emt 00:00:08]} 6. Bd3 {[%clk 00:14:01]} {[%emt
00:00:31]} Bb5 {[%clk 00:14:44]} {[%emt 00:00:10]} 7. Bc2 {[%clk 00:13:23]}
{[%emt 00:00:43]} Ba6 {[%clk 00:14:35]} {[%emt 00:00:13]} 8. Nbd2 {[%clk
00:12:28]} {[%emt 00:01:01]} Nc6 {[%clk 00:14:21]} {[%emt 00:00:19]} 9. Nb3
{[%clk 00:12:25]} {[%emt 00:00:07]} cxd4 {[%clk 00:14:05]} {[%emt 00:00:21]} 10.
cxd4 {[%clk 00:12:06]} {[%emt 00:00:25]} Nge7 {[%clk 00:13:35]} {[%emt
00:00:35]} 11. h4 {[%clk 00:11:55]} {[%emt 00:00:15]} Rc8 {[%clk 00:12:55]}
{[%emt 00:00:46]} 12. Ng5 {[%clk 00:10:35]} {[%emt 00:01:25]} h6 {[%clk
00:11:55]} {[%emt 00:01:05]} 13. Nf3 {[%clk 00:10:11]} {[%emt 00:00:28]} g6
{[%clk 00:10:21]} {[%emt 00:01:39]} 14. g4 {[%clk 00:08:54]} {[%emt 00:01:22]}
h5 {[%clk 00:09:33]} {[%emt 00:00:53]} 15. gxh5 {[%clk 00:08:16]} {[%emt
00:00:43]} Rxh5 {[%clk 00:09:27]} {[%emt 00:00:11]} 16. Ng5 {[%clk 00:07:10]}
{[%emt 00:01:12]} Nb4 {[%clk 00:08:00]} {[%emt 00:01:32]} 17. Bb1 {[%clk
00:06:34]} {[%emt 00:00:41]} Nf5 {[%clk 00:07:49]} {[%emt 00:00:15]} 18. Bxf5
{[%clk 00:05:06]} {[%emt 00:01:34]} exf5 {[%clk 00:07:41]} {[%emt 00:00:12]} 19.
Kd2 {[%clk 00:02:37]} {[%emt 00:02:34]} Nc2 {[%clk 00:07:10]} {[%emt 00:00:36]}
20. Rb1 {[%clk 00:02:31]} {[%emt 00:00:12]} Bb4# {[%emt 00:00:14]} 0-1

[Event "Rapid Tournament (RAP)"]
[Site "Biel, Switzerland"]
[Date "2026.07.12"]
[Round "6.54"]
[White "Varela Tavares, Goncalo"]
[Black "Boner, Timm"]
[Result "1-0"]
[TimeControl "15 + 5"]
[WhiteTitle "-"]
[BlackTitle "-"]
[WhiteFideId "1344773"]
[BlackFideId "1330039"]
[WhiteElo "1880"]
[BlackElo "1720"]

1. Nf3 {[%clk 00:14:17]} {[%emt 00:00:51]} Nc6 {[%clk 00:15:09]} {[%emt
00:00:02]} 2. b3 {[%clk 00:14:20]} {[%emt 00:00:02]} Nf6 {[%clk 00:15:12]}
{[%emt 00:00:02]} 3. Bb2 {[%clk 00:14:23]} {[%emt 00:00:02]} e6 {[%clk
00:15:15]} {[%emt 00:00:02]} 4. d4 {[%clk 00:14:26]} {[%emt 00:00:02]} d5
{[%clk 00:15:18]} {[%emt 00:00:02]} 5. e3 {[%clk 00:14:29]} {[%emt 00:00:01]}
Bd6 {[%clk 00:15:19]} {[%emt 00:00:04]} 6. Nbd2 {[%clk 00:14:32]} {[%emt
00:00:02]} O-O {[%clk 00:15:22]} {[%emt 00:00:03]} 7. Bd3 {[%clk 00:14:33]}
{[%emt 00:00:04]} Nb4 {[%clk 00:15:24]} {[%emt 00:00:04]} 8. O-O {[%clk
00:14:33]} {[%emt 00:00:04]} Nxd3 {[%clk 00:15:26]} {[%emt 00:00:03]} 9. cxd3
{[%clk 00:14:36]} {[%emt 00:00:02]} Re8 {[%clk 00:15:28]} {[%emt 00:00:03]} 10.
Ne5 {[%clk 00:14:38]} {[%emt 00:00:02]} Nd7 {[%clk 00:15:25]} {[%emt 00:00:09]}
11. f4 {[%clk 00:14:37]} {[%emt 00:00:06]} f6 {[%clk 00:15:28]} {[%emt
00:00:03]} 12. Nef3 {[%clk 00:14:40]} {[%emt 00:00:01]} b6 {[%clk 00:15:00]}
{[%emt 00:00:34]} 13. Rc1 {[%clk 00:14:39]} {[%emt 00:00:06]} Ba6 {[%clk
00:15:03]} {[%emt 00:00:02]} 14. Nb1 {[%clk 00:14:42]} {[%emt 00:00:01]} c5
{[%clk 00:14:56]} {[%emt 00:00:12]} 15. Ba3 {[%clk 00:13:35]} {[%emt 00:01:11]}
e5 {[%clk 00:14:39]} {[%emt 00:00:24]} 16. dxe5 {[%clk 00:12:46]} {[%emt
00:00:53]} fxe5 {[%clk 00:14:40]} {[%emt 00:00:04]} 17. Ng5 {[%clk 00:12:40]}
{[%emt 00:00:10]} e4 {[%clk 00:14:37]} {[%emt 00:00:08]} 18. Qh5 {[%clk
00:12:23]} {[%emt 00:00:23]} h6 {[%clk 00:14:13]} {[%emt 00:00:29]} 19. Qf7+
{[%clk 00:11:55]} {[%emt 00:00:32]} Kh8 {[%clk 00:14:11]} {[%emt 00:00:08]} 20.
Qh5 {[%clk 00:10:05]} {[%emt 00:01:54]} Qe7 {[%clk 00:13:32]} {[%emt 00:00:44]}
21. Bb2 {[%clk 00:09:12]} {[%emt 00:00:58]} Bxd3 {[%clk 00:13:22]} {[%emt
00:00:16]} 22. Qxh6+ {[%clk 00:08:57]} {[%emt 00:00:20]} Kg8 {[%clk 00:13:14]}
{[%emt 00:00:13]} 23. Qh5 {[%emt 00:00:08]} 1-0

[Event "Rapid Tournament (RAP)"]
[Site "Biel, Switzerland"]
[Date "2026.07.12"]
[Round "7.1"]
[White "Bu, Xiangzhi"]
[Black "Alexakis, Dimitris"]
[Result "1-0"]
[TimeControl "15 + 5"]
[WhiteTitle "-"]
[BlackTitle "-"]
[WhiteFideId "8601445"]
[BlackFideId "4277023"]
[WhiteElo "2583"]
[BlackElo "2518"]

1. c4 {[%clk 00:14:56]} {[%emt 00:00:14]} c5 {[%clk 00:15:04]} {[%emt
00:00:07]} 2. Nf3 {[%clk 00:14:59]} {[%emt 00:00:02]} Nc6 {[%clk 00:15:07]}
{[%emt 00:00:02]} 3. Nc3 {[%clk 00:15:00]} {[%emt 00:00:04]} Nf6 {[%clk
00:14:25]} {[%emt 00:00:48]} 4. g3 {[%clk 00:15:02]} {[%emt 00:00:03]} e6
{[%clk 00:14:27]} {[%emt 00:00:03]} 5. Bg2 {[%clk 00:15:00]} {[%emt 00:00:07]}
d5 {[%clk 00:14:30]} {[%emt 00:00:02]} 6. cxd5 {[%clk 00:15:03]} {[%emt
00:00:02]} exd5 {[%clk 00:14:34]} {[%emt 00:00:01]} 7. d4 {[%clk 00:15:06]}
{[%emt 00:00:02]} cxd4 {[%clk 00:14:37]} {[%emt 00:00:02]} 8. Nxd4 {[%clk
00:15:09]} {[%emt 00:00:01]} Bc5 {[%clk 00:14:40]} {[%emt 00:00:02]} 9. Nb3
{[%clk 00:15:06]} {[%emt 00:00:08]} Bb6 {[%clk 00:14:43]} {[%emt 00:00:02]} 10.
Na4 {[%clk 00:15:09]} {[%emt 00:00:02]} d4 {[%clk 00:14:21]} {[%emt 00:00:27]}
11. Nxb6 {[%clk 00:14:52]} {[%emt 00:00:22]} axb6 {[%clk 00:14:23]} {[%emt
00:00:04]} 12. Bxc6+ {[%clk 00:14:48]} {[%emt 00:00:09]} bxc6 {[%clk 00:14:26]}
{[%emt 00:00:02]} 13. Qxd4 {[%clk 00:14:51]} {[%emt 00:00:02]} Qxd4 {[%clk
00:11:31]} {[%emt 00:03:00]} 14. Nxd4 {[%clk 00:14:55]} {[%emt 00:00:01]} c5
{[%clk 00:11:25]} {[%emt 00:00:11]} 15. Nb5 {[%clk 00:14:57]} {[%emt 00:00:03]}
Kd7 {[%clk 00:11:26]} {[%emt 00:00:04]} 16. f3 {[%clk 00:14:38]} {[%emt
00:00:24]} Kc6 {[%clk 00:11:04]} {[%emt 00:00:27]} 17. a4 {[%clk 00:10:26]}
{[%emt 00:04:17]} Re8 {[%clk 00:08:27]} {[%emt 00:02:42]} 18. Nc3 {[%clk
00:07:56]} {[%emt 00:02:34]} Nd5 {[%clk 00:07:07]} {[%emt 00:01:25]} 19. Nxd5
{[%clk 00:07:23]} {[%emt 00:00:39]} Kxd5 {[%clk 00:07:10]} {[%emt 00:00:02]} 20.
Kf2 {[%clk 00:07:08]} {[%emt 00:00:20]} Ba6 {[%clk 00:04:32]} {[%emt 00:02:43]}
21. e4+ {[%clk 00:06:59]} {[%emt 00:00:14]} Kc6 {[%clk 00:04:35]} {[%emt
00:00:02]} 22. Be3 {[%clk 00:06:49]} {[%emt 00:00:14]} Bd3 {[%clk 00:03:59]}
{[%emt 00:00:41]} 23. Rhc1 {[%clk 00:06:44]} {[%emt 00:00:10]} Kb7 {[%clk
00:03:28]} {[%emt 00:00:37]} 24. Rc3 {[%clk 00:04:51]} {[%emt 00:01:58]} Red8
{[%clk 00:03:16]} {[%emt 00:00:17]} 25. Raa3 {[%clk 00:02:48]} {[%emt
00:02:08]} c4 {[%clk 00:02:00]} {[%emt 00:01:21]} 26. b4 {[%clk 00:02:39]}
{[%emt 00:00:14]} Ra6 {[%clk 00:01:37]} {[%emt 00:00:29]} 27. Ra2 {[%clk
00:02:23]} {[%emt 00:00:21]} Rda8 {[%clk 00:01:12]} {[%emt 00:00:29]} 28. Rca3
{[%clk 00:02:27]} {[%emt 00:00:01]} b5 {[%clk 00:01:14]} {[%emt 00:00:03]} 29.
a5 {[%clk 00:02:31]} {[%emt 00:00:01]} Re6 {[%clk 00:00:59]} {[%emt 00:00:19]}
30. Bd4 {[%clk 00:02:05]} {[%emt 00:00:31]} f6 {[%clk 00:00:50]} {[%emt
00:00:15]} 31. g4 {[%clk 00:01:45]} {[%emt 00:00:25]} Ka6 {[%clk 00:00:48]}
{[%emt 00:00:07]} 32. h4 {[%clk 00:01:42]} {[%emt 00:00:08]} Rd8 {[%clk
00:00:44]} {[%emt 00:00:09]} 33. Bc3 {[%clk 00:01:43]} {[%emt 00:00:05]} g6
{[%clk 00:00:26]} {[%emt 00:00:23]} 34. Rd2 {[%clk 00:01:41]} {[%emt 00:00:06]}
Rf8 {[%clk 00:00:25]} {[%emt 00:00:06]} 35. Ra1 {[%clk 00:01:37]} {[%emt
00:00:09]} f5 {[%clk 00:00:29]} {[%emt 00:00:02]} 36. gxf5 {[%clk 00:00:38]}
{[%emt 00:01:04]} gxf5 {[%clk 00:00:32]} {[%emt 00:00:01]} 37. e5 {[%clk
00:00:43]} Rh6 {[%clk 00:00:19]} {[%emt 00:00:18]} 38. Rg1 {[%clk 00:00:32]}
{[%emt 00:00:16]} Rxh4 {[%clk 00:00:16]} {[%emt 00:00:08]} 39. Rg7 {[%clk
00:00:23]} {[%emt 00:00:14]} Rh2+ {[%clk 00:00:11]} {[%emt 00:00:10]} 40. Kg3
{[%clk 00:00:27]} Rxd2 {[%clk 00:00:07]} {[%emt 00:00:10]} 41. Bxd2 {[%clk
00:00:31]} {[%emt 00:00:01]} f4+ {[%clk 00:00:11]} 42. Bxf4 {[%clk 00:00:32]}
{[%emt 00:00:04]} Bg6 {[%clk 00:00:08]} {[%emt 00:00:07]} 43. e6 {[%clk
00:00:30]} {[%emt 00:00:07]} c3 {[%clk 00:00:12]} 44. Be3 {[%clk 00:00:34]} Ra8
{[%clk 00:00:17]} 45. Rc7 {[%clk 00:00:38]} c2 {[%clk 00:00:20]} {[%emt
00:00:02]} 46. Kf4 {[%clk 00:00:35]} {[%emt 00:00:09]} h5 {[%clk 00:00:07]}
{[%emt 00:00:18]} 47. Kg5 {[%clk 00:00:38]} {[%emt 00:00:02]} Bd3 {[%clk
00:00:06]} {[%emt 00:00:06]} 48. e7 {[%clk 00:00:41]} {[%emt 00:00:02]} 1-0

[Event "Rapid Tournament (RAP)"]
[Site "Biel, Switzerland"]
[Date "2026.07.12"]
[Round "7.2"]
[White "Savitha, Shri B"]
[Black "Kozak, Adam"]
[Result "0-1"]
[TimeControl "15 + 5"]
[WhiteTitle "-"]
[BlackTitle "-"]
[WhiteFideId "35061887"]
[BlackFideId "753246"]
[WhiteElo "2317"]
[BlackElo "2592"]

1. e4 {[%clk 00:15:03]} {[%emt 00:00:07]} e5 {[%clk 00:15:08]} {[%emt
00:00:03]} 2. Nf3 {[%clk 00:15:06]} Nc6 {[%clk 00:15:11]} {[%emt 00:00:02]} 3.
Bb5 {[%clk 00:15:10]} {[%emt 00:00:02]} Nf6 {[%clk 00:15:14]} {[%emt 00:00:03]}
4. O-O {[%clk 00:13:52]} {[%emt 00:01:22]} Nxe4 {[%clk 00:15:05]} {[%emt
00:00:14]} 5. d4 {[%clk 00:12:32]} {[%emt 00:01:26]} Nd6 {[%clk 00:15:06]}
{[%emt 00:00:04]} 6. dxe5 {[%clk 00:12:23]} {[%emt 00:00:14]} Nxb5 {[%clk
00:15:08]} {[%emt 00:00:03]} 7. a4 {[%clk 00:12:28]} Nbd4 {[%clk 00:15:10]}
{[%emt 00:00:03]} 8. Nxd4 {[%clk 00:12:31]} {[%emt 00:00:01]} d5 {[%clk
00:15:07]} {[%emt 00:00:07]} 9. exd6 {[%clk 00:11:53]} {[%emt 00:00:43]} Nxd4
{[%clk 00:15:09]} {[%emt 00:00:03]} 10. Qxd4 {[%clk 00:11:42]} {[%emt
00:00:16]} Qxd6 {[%clk 00:15:12]} {[%emt 00:00:02]} 11. Qe4+ {[%clk 00:11:46]}
{[%emt 00:00:01]} Qe6 {[%clk 00:15:16]} {[%emt 00:00:02]} 12. Qd4 {[%clk
00:11:50]} Qd6 {[%clk 00:15:20]} {[%emt 00:00:01]} 13. Qe4+ {[%clk 00:11:55]}
Qe6 {[%clk 00:15:24]} {[%emt 00:00:01]} 14. Qd4 {[%clk 00:11:59]} Qb6 {[%clk
00:15:29]} 15. Qe4+ {[%clk 00:09:28]} {[%emt 00:02:36]} Be6 {[%clk 00:15:30]}
{[%emt 00:00:03]} 16. a5 {[%clk 00:07:47]} {[%emt 00:01:46]} Qb4 {[%clk
00:14:43]} {[%emt 00:00:52]} 17. Qf3 {[%clk 00:07:29]} {[%emt 00:00:23]} a6
{[%clk 00:14:17]} {[%emt 00:00:31]} 18. c3 {[%clk 00:06:28]} {[%emt 00:01:06]}
Qb3 {[%clk 00:12:11]} {[%emt 00:02:11]} 19. Nd2 {[%clk 00:06:19]} {[%emt
00:00:14]} Qd5 {[%clk 00:12:11]} {[%emt 00:00:04]} 20. Qxd5 {[%clk 00:05:59]}
{[%emt 00:00:26]} Bxd5 {[%clk 00:12:13]} {[%emt 00:00:04]} 21. Re1+ {[%clk
00:06:03]} Be6 {[%clk 00:09:33]} {[%emt 00:02:44]} 22. Nf3 {[%clk 00:05:54]}
{[%emt 00:00:14]} O-O-O {[%clk 00:09:21]} {[%emt 00:00:17]} 23. Nd4 {[%clk
00:05:57]} {[%emt 00:00:03]} Bc4 {[%clk 00:06:47]} {[%emt 00:02:39]} 24. Bg5
{[%clk 00:04:49]} {[%emt 00:01:13]} f6 {[%clk 00:06:49]} {[%emt 00:00:03]} 25.
Be3 {[%clk 00:04:53]} g6 {[%clk 00:06:23]} {[%emt 00:00:31]} 26. h3 {[%clk
00:04:19]} {[%emt 00:00:40]} Bd6 {[%clk 00:06:02]} {[%emt 00:00:25]} 27. Bh6
{[%clk 00:04:03]} {[%emt 00:00:21]} Rhg8 {[%clk 00:06:01]} {[%emt 00:00:06]} 28.
Be3 {[%clk 00:03:49]} {[%emt 00:00:20]} Rde8 {[%clk 00:05:55]} {[%emt
00:00:11]} 29. Rad1 {[%clk 00:03:41]} {[%emt 00:00:12]} Re5 {[%clk 00:05:48]}
{[%emt 00:00:12]} 30. b4 {[%clk 00:03:42]} {[%emt 00:00:04]} Rge8 {[%clk
00:05:46]} {[%emt 00:00:07]} 31. Rb1 {[%clk 00:03:16]} {[%emt 00:00:32]} Re4
{[%clk 00:05:00]} {[%emt 00:00:50]} 32. Nf3 {[%clk 00:02:54]} {[%emt 00:00:27]}
Ba2 {[%clk 00:04:15]} {[%emt 00:00:50]} 33. Rbc1 {[%clk 00:02:44]} {[%emt
00:00:16]} R4e6 {[%clk 00:03:45]} {[%emt 00:00:34]} 34. Red1 {[%clk 00:02:43]}
{[%emt 00:00:06]} Bc4 {[%clk 00:03:43]} {[%emt 00:00:07]} 35. Rb1 {[%clk
00:02:02]} {[%emt 00:00:46]} Be2 {[%clk 00:03:19]} {[%emt 00:00:28]} 36. Rd2
{[%clk 00:02:04]} {[%emt 00:00:04]} Bc4 {[%clk 00:02:21]} {[%emt 00:01:03]} 37.
Rd4 {[%clk 00:02:07]} {[%emt 00:00:02]} Bb5 {[%clk 00:02:01]} {[%emt 00:00:24]}
38. Rd2 {[%clk 00:01:16]} {[%emt 00:00:56]} Re4 {[%clk 00:01:57]} {[%emt
00:00:10]} 39. Rdb2 {[%clk 00:01:05]} {[%emt 00:00:16]} f5 {[%clk 00:01:31]}
{[%emt 00:00:31]} 40. Nd2 {[%clk 00:00:57]} {[%emt 00:00:14]} Rh4 {[%clk
00:00:30]} {[%emt 00:01:06]} 41. Bg5 {[%clk 00:00:50]} {[%emt 00:00:12]} Rh5
{[%clk 00:00:31]} {[%emt 00:00:04]} 42. Be3 {[%clk 00:00:54]} {[%emt 00:00:01]}
f4 {[%clk 00:00:33]} {[%emt 00:00:03]} 43. Bd4 {[%clk 00:00:59]} Bd3 {[%clk
00:00:29]} {[%emt 00:00:10]} 44. Rc1 {[%clk 00:01:02]} {[%emt 00:00:02]} Re2
{[%clk 00:00:31]} {[%emt 00:00:01]} 45. c4 {[%clk 00:00:54]} {[%emt 00:00:15]}
Bxb4 {[%clk 00:00:22]} {[%emt 00:00:13]} 46. Rxb4 {[%clk 00:00:46]} {[%emt
00:00:12]} Rxd2 {[%clk 00:00:26]} {[%emt 00:00:02]} 47. Re1 {[%clk 00:00:48]}
{[%emt 00:00:04]} c5 {[%clk 00:00:13]} {[%emt 00:00:18]} 48. Bc3 {[%clk
00:00:11]} {[%emt 00:00:42]} cxb4 {[%clk 00:00:10]} {[%emt 00:00:08]} 49. Bxd2
{[%clk 00:00:15]} b3 {[%clk 00:00:14]} {[%emt 00:00:01]} 50. Bc3 {[%clk
00:00:12]} {[%emt 00:00:07]} Bxc4 {[%clk 00:00:08]} {[%emt 00:00:11]} 51. Re4
{[%clk 00:00:16]} Rc5 {[%clk 00:00:09]} {[%emt 00:00:04]} 52. Rxf4 {[%clk
00:00:20]} Bd3 {[%clk 00:00:11]} {[%emt 00:00:02]} 53. Rf8+ {[%clk 00:00:19]}
{[%emt 00:00:06]} Kd7 {[%clk 00:00:13]} {[%emt 00:00:03]} 54. Bf6 {[%clk
00:00:23]} {[%emt 00:00:02]} Ke6 {[%clk 00:00:09]} {[%emt 00:00:09]} 55. Bh8
{[%clk 00:00:14]} {[%emt 00:00:14]} Rxa5 {[%clk 00:00:09]} {[%emt 00:00:06]} 56.
Rf6+ {[%clk 00:00:16]} {[%emt 00:00:03]} Kd5 {[%clk 00:00:07]} {[%emt
00:00:07]} 57. Rf4 {[%clk 00:00:18]} {[%emt 00:00:03]} Bc4 {[%clk 00:00:08]}
{[%emt 00:00:04]} 58. Bc3 {[%clk 00:00:16]} {[%emt 00:00:07]} Ra2 {[%clk
00:00:11]} {[%emt 00:00:01]} 59. Rd4+ {[%clk 00:00:21]} Kc5 {[%clk 00:00:16]}
60. Rd7 {[%clk 00:00:22]} {[%emt 00:00:04]} b2 {[%clk 00:00:09]} {[%emt
00:00:11]} 0-1